[Event "CZE-tht Extraliga 2018-19"]
[Site "Czech Republic"]
[Date "2019.04.20"]
[Round "10.3"]
[White "Biolek, Richard Jr."]
[Black "Parizek, Vojtech"]
[Result "1-0"]
[ECO "A48"]
[WhiteElo "2442"]
[BlackElo "2252"]
[Annotator "NA"]
[PlyCount "75"]
[EventDate "2018.11.03"]
[EventType "team-tourn"]
[EventCountry "CZE"]
[SourceTitle "playchess.com"]
[Source "ChessBase"]
[SourceQuality "1"]
[WhiteTeam "Ostrava"]
[BlackTeam "Siesta B"]
[TimeControl "40/5400+30:1800+30"]

1. d4 {[%emt 0:00:00]} Nf6 {[%emt 0:00:00]} 2. Nf3 {[%emt 0:00:00]} g6 {[%emt 0:00:00]} 3. Bg5 {[%emt 0:00:09]} Bg7 {[%emt 0:08:31]} 4. Nbd2 {[%emt 0:00:30]} d5 {[%emt 0:01:31]} 5. e3 {[%emt 0:01:03]} O-O {[%emt 0:04:26]} 6. Be2 {[%emt 0:00:18]} Nbd7 {[%emt 0:03:01]} 7. O-O {[%emt 0:04:30]} c5 $11 {[%emt 0:14:06]} 8. c3 {[%emt 0:00:40]} Re8 {[%emt 0:04:47]} 9. Bh4 {[%emt 0:21:27]} e5 {[%emt 0:11:25]} 10. Bg3 {[%emt 0:01:39]} Ng4 {[%emt 0:12:22]} 11. h3 {[%emt 0:07:22]} Nh6 {[%emt 0:00:35]} 12. Bxe5 {[%emt 0:00:11]} Nxe5 {[%emt 0:00:31]} 13. dxe5 {[%emt 0:00:02]} Bxe5 {[%emt 0:06:22]} 14. Nxe5 {[%emt 0:00:05]} Rxe5 {[%emt 0:00:10]} 15. Nf3 {[%emt 0:02:23]} Re8 {[%emt 0:01:47]} 16. Qa4 {[%emt 0:10:09]} Nf5 {[%emt 0:02:31]} 17. Rad1 {[%emt 0:03:53]} Bd7 {[%emt 0:14:58]} 18. Qf4 {[%emt 0:08:29]} Bc6 {[%emt 0:01:57]} 19. Bd3 {[%emt 0:01:56]} Nd6 {[%emt 0:04:00]} 20. c4 {[%emt 0:06:48]} Qe7 {[%emt 0:03:46]} 21. cxd5 {[%emt 0:01:21]} Bxd5 {[%emt 0:00:06]} 22. Bxg6 {[%emt 0:01:09]} hxg6 {[%emt 0:00:34]} 23. Rxd5 {[%emt 0:00:05]} Nf5 {[%emt 0:00:50]} 24. Rfd1 {[%emt 0:12:10]} Rad8 {[%emt 0:01:11]} 25. Ng5 {[%emt 0:01:58]} Rxd5 {[%emt 0:01:13]} 26. Rxd5 {[%emt 0:00:04]} Rd8 {[%emt 0:00:33]} 27. Rxd8+ {[%emt 0:00:16]} Qxd8 {[%emt 0:00:05]} 28. Ne4 {[%emt 0:00:13]} b6 {[%emt 0:01:58]} 29. g4 {[%emt 0:02:41]} Ne7 {[%emt 0:00:40]} 30. Nf6+ {[%emt 0:03:19]} Kg7 {[%emt 0:00:09]} 31. Qe5 {[%emt 0:00:49]} Qd1+ {[%emt 0:00:34]} 32. Kg2 {[%emt 0:02:24]} Nc6 {[%emt 0:00:20]} 33. Nh5+ {[%emt 0:00:19]} Kf8 {[%emt 0:00:15]} 34. Qh8+ {[%emt 0:00:08]} Ke7 {[%emt 0:00:08]} 35. Qf6+ {[%emt 0:00:04]} Kf8 {[%emt 0:01:10]} 36. Nf4 {[%emt 0:00:04]} Ne7 {[%emt 0:00:24]} 37. Ne6+ {[%emt 0:00:03]} Ke8 {[%emt 0:00:09]} 38. Qh8+ {[%emt 0:00:03]} 1-0

[Event "CZE-tht Extraliga 2018-19"]
[Site "Czech Republic"]
[Date "2019.04.20"]
[Round "10.3"]
[White "Cernousek, Lukas"]
[Black "Cyborowski, Lukasz"]
[Result "1-0"]
[ECO "C42"]
[WhiteElo "2438"]
[BlackElo "2517"]
[Annotator "ChessBase"]
[PlyCount "105"]
[EventDate "2018.11.03"]
[EventType "team-tourn"]
[EventCountry "CZE"]
[SourceTitle "playchess.com"]
[Source "ChessBase"]
[SourceQuality "1"]
[WhiteTeam "Siesta"]
[BlackTeam "Turnov"]
[TimeControl "40/5400+30:1800+30"]

1. e4 {[%emt 0:00:00]} e5 {[%emt 0:00:16]} 2. Nf3 {[%emt 0:00:00]} Nf6 {[%emt 0:00:03]} 3. Nxe5 {[%emt 0:00:00]} d6 {[%emt 0:00:04]} 4. Nf3 {[%emt 0:00:00]} Nxe4 {[%emt 0:00:05]} 5. Nc3 {[%emt 0:00:01]} Nxc3 {[%emt 0:02:23]} 6. dxc3 {[%emt 0:00:03]} Be7 {[%emt 0:00:07]} 7. Be3 {[%emt 0:00:07]} Nc6 {[%emt 0:01:18]} 8. Qd2 {[%emt 0:00:09]} Be6 {[%emt 0:00:05]} 9. O-O-O {[%emt 0:00:11]} Qd7 {[%emt 0:00:04]} 10. Kb1 {[%emt 0:04:09]} Bf6 {[%emt 0:00:21]} 11. Be2 {[%emt 0:00:06]} h6 {[%emt 0:05:49]} 12. h3 {[%emt 0:07:04]} a6 {[%emt 0:04:01]} 13. Rhe1 {[%emt 0:11:12]} O-O-O {[%emt 0:10:30]} 14. Nd4 {[%emt 0:00:07]} Nxd4 {[%emt 0:00:29]} 15. Bxd4 {[%emt 0:00:07]} Qe7 {[%emt 0:05:20]} 16. c4 {[%emt 0:16:57]} Kb8 {[%emt 0:18:31]} 17. Bf3 {[%emt 0:06:06]} Bxd4 {[%emt 0:12:10]} 18. Qxd4 {[%emt 0:00:02]} Qg5 {[%emt 0:00:09]} 19. Re3 {[%emt 0:15:04]} Rhe8 {[%emt 0:04:32]} 20. Rb3 {[%emt 0:04:45]} Bc8 {[%emt 0:04:34]} 21. Bc6 {[%emt 0:00:34]} Re7 {[%emt 0:03:27]} 22. a4 {[%emt 0:07:17]} Qe5 {[%emt 0:02:28]} 23. Qh4 {[%emt 0:10:15]} Qg5 {[%emt 0:00:54]} 24. Qd4 {[%emt 0:00:05]} Qe5 {[%emt 0:00:23]} 25. Qh4 {[%emt 0:00:23]} Qg5 {[%emt 0:05:29]} 26. Qxg5 {[%emt 0:03:03]} hxg5 {[%emt 0:00:13]} 27. c5 {[%emt 0:00:05]} Re5 {[%emt 0:10:20]} 28. Bxb7 {[%emt 0:01:46]} Bxb7 {[%emt 0:00:05]} 29. c6 {[%emt 0:00:07]} Rc5 {[%emt 0:00:04]} 30. Rxb7+ {[%emt 0:07:14]} Kc8 {[%emt 0:00:03]} 31. Re1 {[%emt 0:00:07]} Rxc6 {[%emt 0:00:43]} 32. Rb4 {[%emt 0:00:04]} Rc5 {[%emt 0:01:25]} 33. Re7 {[%emt 0:01:17]} Rd7 {[%emt 0:01:01]} 34. Re8+ {[%emt 0:00:35]} Rd8 {[%emt 0:00:06]} 35. Re7 {[%emt 0:00:02]} Rd7 {[%emt 0:00:04]} 36. Re8+ {[%emt 0:07:06]} Rd8 {[%emt 0:00:04]} 37. Rxd8+ {[%emt 0:01:42]} Kxd8 {[%emt 0:00:04]} 38. Rb8+ {[%emt 0:00:14]} Kd7 {[%emt 0:00:22]} 39. b4 {[%emt 0:00:02]} Rf5 {[%emt 0:02:36]} 40. f3 {[%emt 0:01:14]} a5 {[%emt 0:07:37]} 41. c3 {[%emt 0:02:06]} c6 {[%emt 0:07:33]} 42. Kc2 {[%emt 0:12:12]} Kc7 {[%emt 0:00:06]} 43. Re8 {[%emt 0:03:01]} Kb6 {[%emt 0:01:53]} 44. Kb3 {[%emt 0:06:27]} Rf4 {[%emt 0:11:33]} 45. Rb8+ {[%emt 0:01:48]} Ka7 {[%emt 0:04:13]} 46. Rd8 {[%emt 0:00:37]} Rf6 {[%emt 0:04:46]} 47. b5 {[%emt 0:02:42]} Kb7 {[%emt 0:03:03]} 48. c4 {[%emt 0:01:33]} Re6 {[%emt 0:01:48]} 49. Kc3 {[%emt 0:02:25]} c5 {[%emt 0:00:39]} 50. Kd2 {[%emt 0:01:48]} Rf6 {[%emt 0:00:13]} 51. Rd7+ {[%emt 0:00:41]} Kb6 {[%emt 0:00:00]} 52. Kd3 {[%emt 0:00:18]} g6 {[%emt 0:01:00]} 53. Kd2 {[%emt 0:00:24]} 1-0

[Event "CZE-tht Extraliga 2018-19"]
[Site "Czech Republic"]
[Date "2019.04.20"]
[Round "10.4"]
[White "Plat, Vojtech"]
[Black "Cvek, Robert"]
[Result "1-0"]
[ECO "B13"]
[WhiteElo "2535"]
[BlackElo "2524"]
[Annotator "ChessBase"]
[PlyCount "125"]
[EventDate "2018.11.03"]
[EventType "team-tourn"]
[EventCountry "CZE"]
[SourceTitle "playchess.com"]
[Source "ChessBase"]
[SourceQuality "1"]
[WhiteTeam "Lysa nad Labem"]
[BlackTeam "Poruba"]
[TimeControl "40/5400+30:1800+30"]

1. e4 {[%emt 0:00:00]} c6 {[%emt 0:00:00]} 2. d4 {[%emt 0:00:00]} d5 {[%emt 0:00:00]} 3. exd5 {[%emt 0:00:00]} cxd5 {[%emt 0:00:00]} 4. Bd3 {[%emt 0:00:00]} g6 {[%emt 0:01:01]} 5. c3 {[%emt 0:00:13]} Bf5 {[%emt 0:03:43]} 6. Be2 {[%emt 0:02:45]} Nc6 {[%emt 0:01:36]} 7. Bf4 {[%emt 0:00:05]} Nf6 {[%emt 0:01:52]} 8. Nd2 {[%emt 0:00:17]} Bg7 {[%emt 0:00:21]} 9. h3 {[%emt 0:00:24]} O-O {[%emt 0:03:28]} 10. Ngf3 {[%emt 0:00:29]} h6 {[%emt 0:01:31]} 11. O-O {[%emt 0:05:58]} g5 {[%emt 0:00:23]} 12. Bh2 {[%emt 0:00:05]} e6 {[%emt 0:00:10]} 13. Ne5 {[%emt 0:01:09]} Nd7 {[%emt 0:11:36]} 14. Nxd7 {[%emt 0:04:44]} Qxd7 {[%emt 0:00:13]} 15. f4 {[%emt 0:00:05]} f6 {[%emt 0:04:26]} 16. Qb3 {[%emt 0:02:10]} Kh8 {[%emt 0:01:23]} 17. Rae1 {[%emt 0:02:33]} Bg6 {[%emt 0:11:46]} 18. Bg4 {[%emt 0:04:04]} Rae8 {[%emt 0:00:31]} 19. Qd1 {[%emt 0:03:16]} Nd8 {[%emt 0:05:25]} 20. Re3 {[%emt 0:05:44]} b6 {[%emt 0:07:22]} 21. Qe2 {[%emt 0:03:57]} f5 {[%emt 0:07:14]} 22. Bh5 {[%emt 0:01:45]} Bxh5 {[%emt 0:05:46]} 23. Qxh5 {[%emt 0:00:10]} Qf7 {[%emt 0:00:19]} 24. Qe2 {[%emt 0:07:19]} Bf6 {[%emt 0:00:28]} 25. Nf3 {[%emt 0:01:03]} g4 {[%emt 0:04:40]} 26. hxg4 {[%emt 0:01:04]} fxg4 {[%emt 0:00:05]} 27. Ne1 {[%emt 0:03:36]} Qg6 {[%emt 0:01:16]} 28. Nd3 {[%emt 0:02:43]} Bg7 {[%emt 0:15:12]} 29. Bg3 {[%emt 0:04:47]} Nb7 {[%emt 0:00:26]} 30. f5 {[%emt 0:01:20]} Rxf5 {[%emt 0:01:17]} 31. Nf4 {[%emt 0:01:32]} Qf7 {[%emt 0:00:51]} 32. Rxe6 {[%emt 0:01:28]} Nd6 {[%emt 0:05:52]} 33. Rxe8+ {[%emt 0:01:22]} Nxe8 {[%emt 0:00:09]} 34. Qxg4 {[%emt 0:00:20]} Kh7 {[%emt 0:00:21]} 35. Qe2 {[%emt 0:05:33]} Nd6 {[%emt 0:00:21]} 36. Nd3 {[%emt 0:02:45]} Ne4 {[%emt 0:00:58]} 37. Rxf5 {[%emt 0:00:07]} Qxf5 {[%emt 0:00:08]} 38. Be1 {[%emt 0:00:10]} Ng5 {[%emt 0:04:28]} 39. Bg3 {[%emt 0:00:52]} Ne4 {[%emt 0:00:09]} 40. Bb8 {[%emt 0:00:32]} Qc8 {[%emt 0:02:04]} 41. Bf4 {[%emt 0:37:43]} Qf5 {[%emt 0:08:48]} 42. Qf3 {[%emt 0:00:00]} Qg6 {[%emt 0:01:35]} 43. Bc1 {[%emt 0:00:00]} a5 {[%emt 0:03:09]} 44. a4 {[%emt 0:00:00]} Kg8 {[%emt 0:02:44]} 45. Nf4 {[%emt 0:00:00]} Qc6 {[%emt 0:00:59]} 46. Qg4 {[%emt 0:00:00]} Ng5 {[%emt 0:08:34]} 47. Nh5 {[%emt 0:00:00]} Qe6 {[%emt 0:01:08]} 48. Qxe6+ {[%emt 0:00:00]} Nxe6 {[%emt 0:00:04]} 49. Nf4 {[%emt 0:00:00]} Nc7 {[%emt 0:00:14]} 50. Nd3 {[%emt 0:00:00]} Kf7 {[%emt 0:01:25]} 51. Kf2 {[%emt 0:00:00]} Ke6 {[%emt 0:01:37]} 52. Kf3 {[%emt 0:00:00]} Kf5 {[%emt 0:00:35]} 53. g4+ {[%emt 0:00:00]} Ke6 {[%emt 0:00:41]} 54. Bf4 {[%emt 0:00:00]} Ne8 {[%emt 0:00:18]} 55. Bg3 {[%emt 0:00:00]} Bf6 {[%emt 0:01:25]} 56. Nf4+ {[%emt 0:00:00]} Kd6 {[%emt 0:00:04]} 57. Nh5+ {[%emt 0:00:00]} Ke6 {[%emt 0:03:31]} 58. Nxf6 {[%emt 0:00:00]} Kxf6 {[%emt 0:00:05]} 59. Be5+ {[%emt 0:00:00]} Kg5 {[%emt 0:00:05]} 60. b3 {[%emt 0:00:00]} h5 {[%emt 0:00:27]} 61. gxh5 {[%emt 0:00:00]} Kxh5 {[%emt 0:00:01]} 62. c4 {[%emt 0:00:00]} dxc4 {[%emt 0:00:39]} 63. bxc4 {[%emt 0:00:00]} 1-0

[Event "CZE-tht Extraliga 2018-19"]
[Site "Czech Republic"]
[Date "2019.04.20"]
[Round "10.4"]
[White "Simacek, Pavel"]
[Black "Bernasek, Jan"]
[Result "0-1"]
[ECO "B15"]
[WhiteElo "2471"]
[BlackElo "2484"]
[Annotator "ChessBase"]
[PlyCount "52"]
[EventDate "2018.11.03"]
[EventType "team-tourn"]
[EventCountry "CZE"]
[SourceTitle "playchess.com"]
[Source "ChessBase"]
[SourceQuality "1"]
[WhiteTeam "Turnov"]
[BlackTeam "Siesta"]
[TimeControl "40/5400+30:1800+30"]

1. e4 {[%emt 0:00:00]} c6 {[%emt 0:00:00]} 2. d4 {[%emt 0:00:00]} d5 {[%emt 0:00:00]} 3. Nc3 {[%emt 0:00:00]} dxe4 {[%emt 0:00:00]} 4. Nxe4 {[%emt 0:00:00]} Nf6 {[%emt 0:00:00]} 5. Ng5 {[%emt 0:08:35]} Bf5 {[%emt 0:08:04]} 6. Bc4 {[%emt 0:04:34]} e6 {[%emt 0:07:15]} 7. Qe2 {[%emt 0:00:55]} Nbd7 {[%emt 0:06:12]} 8. N5f3 {[%emt 0:08:26]} Bd6 {[%emt 0:01:49]} 9. Bg5 {[%emt 0:01:18]} Qa5+ 10. Bd2 {[%emt 0:04:31]} Qc7 {[%emt 0:10:19]} 11. O-O-O {[%emt 0:01:05]} O-O {[%emt 0:01:39]} 12. h3 {[%emt 0:03:58]} Nb6 {[%emt 0:08:50]} 13. g4 {[%emt 0:07:59]} Bg6 {[%emt 0:08:07]} 14. Bb3 {[%emt 0:08:17]} a5 {[%emt 0:02:45]} 15. c3 {[%emt 0:13:25]} c5 {[%emt 0:06:24]} 16. Bc2 {[%emt 0:03:57]} Qc6 {[%emt 0:06:04]} 17. Bxg6 {[%emt 0:02:45]} hxg6 {[%emt 0:01:25]} 18. dxc5 {[%emt 0:12:22]} Bxc5 {[%emt 0:00:07]} 19. Rh2 {[%emt 0:05:54]} Bd6 {[%emt 0:02:03]} 20. Ne5 {[%emt 0:01:51]} Qa4 {[%emt 0:00:32]} 21. Ngf3 {[%emt 0:05:44]} Qxa2 {[%emt 0:02:54]} 22. Qb5 {[%emt 0:00:36]} Nbd5 {[%emt 0:01:12]} 23. Rhh1 {[%emt 0:01:01]} Rac8 {[%emt 0:03:42]} 24. Nd3 {[%emt 0:03:07]} Ne4 {[%emt 0:01:03]} 25. Rhe1 {[%emt 0:00:06]} Nexc3 {[%emt 0:00:57]} 26. bxc3 {[%emt 0:00:06]} Nxc3 {[%emt 0:00:17]} 0-1

[Event "CZE-tht Extraliga 2018-19"]
[Site "Czech Republic"]
[Date "2019.04.20"]
[Round "10.4"]
[White "Zwardon, Vojtech"]
[Black "Blahynka, Martin"]
[Result "1/2-1/2"]
[ECO "A00"]
[WhiteElo "2458"]
[BlackElo "2422"]
[Annotator "ChessBase"]
[PlyCount "155"]
[EventDate "2018.11.03"]
[EventType "team-tourn"]
[EventCountry "CZE"]
[SourceTitle "playchess.com"]
[Source "ChessBase"]
[SourceQuality "1"]
[WhiteTeam "Beskydska"]
[BlackTeam "Duras"]
[TimeControl "40/5400+30:1800+30"]

1. g3 {[%emt 0:00:00]} Nf6 {[%emt 0:02:00]} 2. Bg2 {[%emt 0:00:00]} d5 {[%emt 0:00:12]} 3. Nf3 {[%emt 0:00:00]} c5 {[%emt 0:04:05]} 4. O-O {[%emt 0:00:18]} Nc6 {[%emt 0:00:10]} 5. d4 {[%emt 0:00:05]} e6 {[%emt 0:07:55]} 6. Bg5 {[%emt 0:04:56]} h6 {[%emt 0:02:21]} 7. Bxf6 {[%emt 0:00:56]} Qxf6 {[%emt 0:00:06]} 8. c4 {[%emt 0:05:21]} cxd4 {[%emt 0:02:12]} 9. cxd5 {[%emt 0:00:33]} exd5 {[%emt 0:00:06]} 10. Nbd2 {[%emt 0:00:57]} g6 {[%emt 0:06:26]} 11. Qb3 {[%emt 0:04:17]} Bg7 {[%emt 0:01:14]} 12. Qxd5 {[%emt 0:00:26]} O-O {[%emt 0:00:46]} 13. Ne4 {[%emt 0:03:21]} Qe6 {[%emt 0:02:06]} 14. Qxe6 {[%emt 0:01:26]} Bxe6 {[%emt 0:00:10]} 15. Ne1 {[%emt 0:00:27]} Rfd8 {[%emt 0:14:37]} 16. Nd3 {[%emt 0:02:08]} b6 {[%emt 0:00:43]} 17. Nf4 {[%emt 0:09:37]} Bf5 {[%emt 0:07:45]} 18. Rac1 {[%emt 0:01:23]} Rac8 {[%emt 0:00:17]} 19. a4 {[%emt 0:00:54]} Nb4 {[%emt 0:17:23]} 20. Rxc8 {[%emt 0:03:02]} Bxc8 {[%emt 0:00:05]} 21. Rc1 {[%emt 0:00:43]} Ba6 {[%emt 0:00:30]} 22. Bf1 {[%emt 0:03:45]} Be5 {[%emt 0:12:23]} 23. Nd3 {[%emt 0:02:55]} Nxd3 {[%emt 0:00:06]} 24. exd3 {[%emt 0:00:03]} g5 {[%emt 0:04:36]} 25. b4 {[%emt 0:04:04]} Rc8 {[%emt 0:03:36]} 26. Re1 {[%emt 0:00:34]} g4 {[%emt 0:03:25]} 27. h3 {[%emt 0:05:05]} h5 {[%emt 0:01:05]} 28. hxg4 {[%emt 0:00:06]} hxg4 {[%emt 0:00:04]} 29. Nd2 {[%emt 0:00:13]} Bd6 {[%emt 0:04:36]} 30. b5 {[%emt 0:02:53]} Bb7 {[%emt 0:00:10]} 31. Nc4 {[%emt 0:00:24]} Bb4 {[%emt 0:01:11]} 32. Re5 {[%emt 0:03:16]} Bf3 {[%emt 0:02:53]} 33. Bg2 {[%emt 0:03:20]} Bd1 {[%emt 0:00:29]} 34. Rd5 {[%emt 0:01:49]} Bxa4 {[%emt 0:00:33]} 35. Rxd4 {[%emt 0:03:01]} Bxb5 {[%emt 0:00:17]} 36. Rxg4+ {[%emt 0:13:15]} Kf8 {[%emt 0:00:08]} 37. Rh4 {[%emt 0:01:42]} Rd8 {[%emt 0:01:04]} 38. Nxb6 {[%emt 0:00:21]} Bc3 {[%emt 0:00:41]} 39. Nd5 {[%emt 0:00:10]} Be5 {[%emt 0:00:32]} 40. d4 {[%emt 0:00:15]} Bg7 {[%emt 0:00:24]} 41. Nc7 {[%emt 0:30:26]} Bd3 {[%emt 0:02:17]} 42. Rf4 {[%emt 0:00:00]} Rd6 {[%emt 0:17:18]} 43. d5 {[%emt 0:00:00]} Ke7 {[%emt 0:02:21]} 44. Rf3 {[%emt 0:00:00]} Bc4 {[%emt 0:06:45]} 45. Re3+ {[%emt 0:00:00]} Kd7 {[%emt 0:00:43]} 46. Ne8 {[%emt 0:00:00]} Rg6 {[%emt 0:00:33]} 47. Bh3+ {[%emt 0:00:00]} Kd8 {[%emt 0:00:10]} 48. Nxg7 {[%emt 0:00:00]} Rxg7 {[%emt 0:00:07]} 49. Rc3 {[%emt 0:00:00]} Bb5 {[%emt 0:02:15]} 50. Rc8+ {[%emt 0:00:00]} Ke7 {[%emt 0:00:02]} 51. Rb8 {[%emt 0:00:00]} a6 {[%emt 0:03:02]} 52. Rb7+ {[%emt 0:00:00]} Kd6 {[%emt 0:00:05]} 53. Be6 {[%emt 0:00:00]} Be8 {[%emt 0:00:05]} 54. Ra7 {[%emt 0:00:00]} a5 {[%emt 0:00:49]} 55. Kf1 {[%emt 0:00:00]} a4 {[%emt 0:00:59]} 56. Ke2 {[%emt 0:00:00]} a3 {[%emt 0:00:28]} 57. Ke3 {[%emt 0:00:00]} a2 {[%emt 0:00:06]} 58. Ra6+ {[%emt 0:00:00]} Kc5 {[%emt 0:00:26]} 59. Bf5 {[%emt 0:00:00]} Kxd5 {[%emt 0:00:23]} 60. Be4+ {[%emt 0:00:00]} Kc5 {[%emt 0:00:17]} 61. Rxa2 {[%emt 0:00:00]} Kd6 {[%emt 0:00:25]} 62. Ra7 {[%emt 0:00:00]} Bd7 {[%emt 0:00:17]} 63. Bc2 {[%emt 0:00:00]} Be6 {[%emt 0:00:43]} 64. Ba4 {[%emt 0:00:00]} Rg5 {[%emt 0:00:36]} 65. Be8 {[%emt 0:05:59]} Re5+ {[%emt 0:00:04]} 66. Kd4 {[%emt 0:00:08]} Rd5+ {[%emt 0:00:08]} 67. Kc3 {[%emt 0:00:08]} Rc5+ {[%emt 0:00:17]} 68. Kb2 {[%emt 0:00:39]} f6 {[%emt 0:02:02]} 69. Bg6 {[%emt 0:00:36]} Bf5 {[%emt 0:00:50]} 70. Ra6+ {[%emt 0:00:47]} Ke7 {[%emt 0:00:03]} 71. Bxf5 {[%emt 0:01:10]} Rxf5 {[%emt 0:00:04]} 72. f4 {[%emt 0:00:06]} Rc5 {[%emt 0:00:02]} 73. Kb3 {[%emt 0:01:48]} Rc1 {[%emt 0:00:49]} 74. g4 {[%emt 0:00:49]} Rg1 {[%emt 0:00:30]} 75. Ra7+ {[%emt 0:00:13]} Kf8 {[%emt 0:00:12]} 76. g5 {[%emt 0:00:40]} fxg5 {[%emt 0:00:06]} 77. fxg5 {[%emt 0:00:05]} Rxg5 {[%emt 0:00:06]} 78. Ra1 {[%emt 0:00:09]} 1/2-1/2

[Event "CZE-tht Extraliga 2018-19"]
[Site "Czech Republic"]
[Date "2019.04.20"]
[Round "10.4"]
[White "Piesik, Piotr"]
[Black "Nayhebaver, Martin"]
[Result "1/2-1/2"]
[ECO "A40"]
[WhiteElo "2420"]
[BlackElo "2464"]
[Annotator "RC"]
[PlyCount "43"]
[EventDate "2018.11.03"]
[EventType "team-tourn"]
[EventCountry "CZE"]
[SourceTitle "playchess.com"]
[Source "ChessBase"]
[SourceQuality "1"]
[WhiteTeam "Cesky Tesin"]
[BlackTeam "Brno"]
[TimeControl "40/5400+30:1800+30"]

1. d4 {[%emt 0:00:00]} Nf6 {[%emt 0:00:00]} 2. c4 {[%emt 0:00:36]} e6 {[%emt 0:00:18]} 3. g3 {[%emt 0:00:31]} d5 {[%emt 0:01:59]} 4. Nf3 {[%emt 0:00:22]} Bb4+ {[%emt 0:01:35]} 5. Bd2 {[%emt 0:00:41]} Bd6 {[%emt 0:02:04]} 6. Nc3 {[%emt 0:07:43]} c6 {[%emt 0:00:24]} 7. b3 {[%emt 0:01:13]} O-O {[%emt 0:01:38]} 8. Bg2 {[%emt 0:00:12]} Nbd7 {[%emt 0:01:14]} 9. O-O {[%emt 0:02:19]} h6 {[%emt 0:03:12]} 10. Qc2 {[%emt 0:01:45]} b6 {[%emt 0:14:39]} 11. e4 {[%emt 0:05:32]} dxe4 {[%emt 0:00:41]} 12. Nxe4 {[%emt 0:00:01]} Nxe4 {[%emt 0:00:43]} 13. Qxe4 {[%emt 0:00:06]} Bb7 {[%emt 0:00:24]} 14. Rad1 {[%emt 0:10:18]} Qe7 {[%emt 0:08:56]} 15. Bf4 {[%emt 0:21:24]} Rfd8 {[%emt 0:05:12]} 16. Ne5 {[%emt 0:09:51]} Rac8 {[%emt 0:07:11]} 17. Rfe1 {[%emt 0:06:58]} Ba8 {[%emt 0:09:48]} 18. Qc2 {[%emt 0:01:09]} Nxe5 {[%emt 0:03:40]} 19. dxe5 {[%emt 0:00:55]} Bc5 {[%emt 0:03:04]} 20. Qe4 {[%emt 0:10:59]} Bb4 {[%emt 0:02:59]} 21. Rf1 {[%emt 0:00:28]} Rd7 {[%emt 0:12:46]} 22. Be3 {[%emt 0:03:35]} 1/2-1/2

[Event "CZE-tht Extraliga 2018-19"]
[Site "Czech Republic"]
[Date "2019.04.20"]
[Round "10.5"]
[White "Krejci, Jan"]
[Black "Votava, Jan"]
[Result "1/2-1/2"]
[ECO "C88"]
[WhiteElo "2588"]
[BlackElo "2518"]
[Annotator "ChessBase"]
[PlyCount "47"]
[EventDate "2018.11.03"]
[EventType "team-tourn"]
[EventCountry "CZE"]
[SourceTitle "playchess.com"]
[Source "ChessBase"]
[SourceQuality "1"]
[WhiteTeam "Novoborsky"]
[BlackTeam "Pardubice"]
[TimeControl "40/5400+30:1800+30"]

1. e4 {[%emt 0:00:00]} e5 {[%emt 0:00:00]} 2. Nf3 {[%emt 0:00:00]} Nc6 {[%emt 0:00:00]} 3. Bb5 {[%emt 0:00:00]} a6 {[%emt 0:00:05]} 4. Ba4 {[%emt 0:00:00]} Nf6 {[%emt 0:00:27]} 5. O-O {[%emt 0:00:00]} Be7 {[%emt 0:00:25]} 6. Re1 {[%emt 0:00:00]} b5 {[%emt 0:00:16]} 7. Bb3 {[%emt 0:00:00]} O-O {[%emt 0:11:43]} 8. d4 {[%emt 0:00:12]} Nxd4 {[%emt 0:03:44]} 9. Nxd4 {[%emt 0:00:12]} exd4 {[%emt 0:00:01]} 10. e5 {[%emt 0:00:08]} Ne8 {[%emt 0:00:12]} 11. c3 {[%emt 0:00:03]} c5 {[%emt 0:01:31]} 12. cxd4 {[%emt 0:00:16]} c4 {[%emt 0:00:13]} 13. Bc2 {[%emt 0:00:04]} d5 {[%emt 0:01:09]} 14. Nc3 {[%emt 0:05:18]} Nc7 {[%emt 0:01:27]} 15. a3 {[%emt 0:07:28]} a5 {[%emt 0:05:44]} 16. Ne2 {[%emt 0:13:21]} Ra6 {[%emt 0:08:42]} 17. Ng3 {[%emt 0:06:48]} f5 {[%emt 0:15:47]} 18. exf6 {[%emt 0:00:27]} Bxf6 {[%emt 0:01:09]} 19. Bf4 {[%emt 0:03:33]} Ne6 {[%emt 0:08:27]} 20. Be5 {[%emt 0:05:11]} g6 {[%emt 0:01:40]} 21. Qd2 {[%emt 0:15:30]} Bg5 {[%emt 0:01:11]} 22. Qe2 {[%emt 0:00:24]} Nf4 {[%emt 0:02:32]} 23. Qf1 {[%emt 0:00:23]} Ra7 {[%emt 0:13:26]} 24. Ne2 {[%emt 0:05:44]} 1/2-1/2